bitfinex/quotes_ETHUSD_20260310
["timestamp","ask_amount","ask_price","bid_price","bid_amount"]
[1773115204240,0.47894564,2028.5,2027.9,1.73203245]
[1773115204855,0.47894564,2028.5,2028.0,0.49923336]
[1773115205691,0.47894564,2028.8,2028.3,0.49923336]
[1773115206200,1.288,2028.9,2028.3,0.49923336]
[1773115206355,1.288,2028.9,2028.5,0.49923336]
[1773115207493,0.001,2029.2,2028.7,0.49923336]
[1773115208076,1.7119658,2029.2,2028.7,0.49923336]
[1773115208489,0.47994564,2029.2,2028.7,1.73149514]
[1773115209797,0.47994564,2029.2,2028.8,0.49923336]
[1773115210203,0.47894564,2029.1,2028.6,1.73157004]
[1773115210679,1.71102329,2029.1,2028.6,0.49923336]
[1773115210888,0.47894564,2029.0,2028.4,0.49923336]
[1773115211112,2.59334155,2029.1,2028.2,1.23258808]
[1773115211113,0.47894564,2028.8,2028.2,1.73182144]
[1773115211906,0.47894564,2028.8,2028.3,0.49923336]
[1773115212702,0.47894564,2028.8,2028.4,1.23249852]
[1773115213289,0.001,2029.2,2028.4,1.23249852]
[1773115213290,0.47894564,2029.1,2028.5,0.49923336]
[1773115213473,3.00001546,2029.2,2028.5,0.49923336]
[1773115213672,0.47994564,2028.9,2028.3,1.73175295]
[1773115214486,0.47994564,2028.9,2028.4,0.49923336]
[1773115214800,0.001,2028.9,2028.6,0.49923336]
[1773115215393,0.001,2028.9,2028.5,1.23243776]
[1773115215586,0.47994564,2028.9,2028.4,1.73169313]
[1773115215780,0.001,2028.9,2028.5,0.49923336]
[1773115216669,0.001,2028.9,2028.4,5.42905717]
[1773115216873,0.001,2028.9,2028.5,1.73162595]
[1773115217115,0.001,2028.9,2028.5,0.49923336]
[1773115218707,0.001,2028.9,2028.7,0.49923336]
[1773115219005,1.76794564,2029.2,2028.7,0.49923336]
[1773115219006,0.001,2029.2,2028.7,0.49923336]
[1773115219207,0.47894564,2029.1,2028.6,1.232377]
[1773115220630,0.47994564,2029.2,2028.7,0.49923336]
[1773115220953,0.47894564,2029.1,2028.5,0.49923336]
[1773115221122,0.47894564,2028.9,2028.2,0.0011]
[1773115221482,0.47894564,2028.7,2028.2,0.0011]
[1773115221811,0.47894564,2028.7,2028.0,0.0011]
[1773115222019,0.47894564,2028.4,2027.7,0.0011]
[1773115222309,3.40361861,2028.5,2027.7,1.23401983]
[1773115222310,0.47894564,2028.2,2027.7,1.23401983]
[1773115222610,1.71159745,2028.2,2027.7,0.0011]
[1773115222796,0.47894564,2028.1,2027.7,0.0011]
[1773115224108,0.47894564,2028.2,2027.7,0.0011]
[1773115225107,0.47894564,2028.1,2027.7,0.0011]
[1773115225881,3.40361861,2028.1,2027.5,0.0011]
[1773115226086,0.47894564,2028.0,2027.9,0.0011]
[1773115228083,1.71157746,2028.2,2027.9,0.0011]
[1773115228284,2.99851289,2028.3,2027.9,0.0011]
[1773115228481,0.47894564,2028.2,2027.9,0.0011]
[1773115231113,0.47894564,2028.0,2027.5,1.23410024]
[1773115231591,0.47894564,2028.0,2027.5,0.0011]
[1773115233815,1.71172172,2028.0,2027.5,0.0011]
[1773115234493,0.47894564,2028.0,2027.5,0.46487403]
[1773115234697,0.4538081,2028.2,2027.5,0.46487403]
[1773115235509,0.4538081,2028.6,2027.7,0.46377403]
[1773115235699,1.289,2028.4,2027.7,0.46377403]
[1773115235904,1.289,2028.4,2027.9,0.46377403]
[1773115236096,1.29,2028.7,2027.9,0.46377403]
[1773115236387,2.52232369,2028.7,2027.9,0.46377403]
[1773115236791,2.97613179,2028.7,2027.9,0.46377403]
[1773115237316,1.7438081,2028.7,2027.9,0.46377403]
[1773115237516,1.29,2028.7,2027.9,0.46377403]
[1773115237911,1.29,2028.7,2028.1,0.46377403]
[1773115239424,1.68590019,2029.1,2028.2,0.46377403]
[1773115240803,0.4538081,2029.0,2028.3,1.69633331]
[1773115243499,1.68594584,2029.0,2028.4,0.46377403]
[1773115243821,0.4538081,2029.0,2028.4,0.46377403]
[1773115245050,1.68594308,2029.0,2028.4,0.46377403]
[1773115245656,1.23213498,2029.0,2028.4,1.69622548]
[1773115245943,0.4538081,2028.9,2028.1,1.69644324]
[1773115246151,0.4538081,2028.9,2028.1,0.46377403]
[1773115246353,0.4538081,2028.9,2028.0,1.69647792]
[1773115246517,0.4538081,2028.9,2028.1,0.46377403]
[1773115247371,0.4538081,2029.1,2028.1,0.46377403]
[1773115247522,0.4538081,2028.9,2028.1,0.46377403]
[1773115247723,1.68604431,2028.9,2028.3,0.46377403]
[1773115249120,1.68601254,2028.9,2028.3,0.46377403]
[1773115249332,0.001,2028.7,2028.3,0.46377403]
[1773115249920,0.001,2028.7,2028.4,0.46377403]
[1773115250124,0.001,2028.7,2028.3,1.23253332]
[1773115250322,0.001,2028.7,2028.3,1.69630735]
[1773115250546,0.4548081,2028.7,2027.9,0.46377403]
[1773115252117,0.4548081,2028.7,2028.1,0.46377403]
[1773115252322,0.4538081,2028.6,2028.1,0.46377403]
[1773115252522,0.001,2028.7,2028.1,0.46377403]
[1773115252764,1.23331972,2028.7,2028.1,0.46377403]
[1773115253125,0.001,2028.7,2028.1,0.46377403]
[1773115253323,1.6871317,2028.7,2028.1,0.46377403]
[1773115253758,0.4538081,2028.6,2028.1,0.46377403]
[1773115255137,1.68619062,2028.6,2028.1,1.69640425]
[1773115255634,0.4538081,2028.5,2027.8,1.2328632]
[1773115255835,0.4538081,2028.3,2027.7,0.0011]
[1773115256925,0.4538081,2028.3,2027.7,1.23402091]
[1773115257249,0.4538081,2028.1,2027.7,0.0011]
[1773115259156,0.4538081,2028.1,2027.5,0.0011]
[1773115259478,0.49334785,2027.9,2027.3,0.0011]
[1773115259630,0.49334785,2027.7,2027.3,0.0011]
[1773115261428,0.49334785,2027.7,2027.4,0.0011]
[1773115262050,0.49334785,2028.0,2027.4,0.48455698]
[1773115262227,1.289,2027.9,2027.4,0.48455698]
[1773115263350,1.232377,2028.6,2027.5,0.45529629]
[1773115263657,2.52138259,2028.6,2027.7,0.45529629]
[1773115264033,1.289,2028.6,2027.7,0.45529629]
[1773115264663,1.289,2028.5,2027.7,0.45529629]
[1773115265364,0.48336902,2028.4,2027.7,0.45529629]
[1773115265557,0.48336902,2028.4,2027.6,1.2329848]
[1773115265558,0.48336902,2028.2,2027.6,1.2329848]
[1773115265756,0.48336902,2028.2,2027.6,1.68828109]
[1773115265964,1.289,2028.2,2027.7,0.45529629]
[1773115266255,1.23255928,2028.3,2027.7,0.45529629]
[1773115266433,5.41360616,2028.4,2027.7,0.45529629]
[1773115266434,1.71574602,2028.6,2027.7,0.45529629]
[1773115266636,1.289,2028.5,2027.7,0.45529629]
[1773115267044,1.77236902,2028.5,2027.7,0.45529629]
[1773115267364,0.48336902,2028.5,2027.7,0.45529629]
[1773115267562,0.48336902,2028.5,2027.9,0.45529629]
[1773115267764,1.77236902,2028.5,2027.9,0.45529629]
[1773115267931,3.00481026,2028.5,2027.9,0.45529629]
[1773115268663,1.71581026,2028.5,2027.9,0.45529629]
[1773115268862,2.52144124,2028.5,2027.4,4.93351868]
[1773115269053,2.52144124,2028.5,2027.5,1.23304562]
[1773115269054,0.48336902,2028.4,2027.5,1.23304562]
[1773115269254,0.48336902,2028.4,2027.4,1.68948105]
[1773115269663,0.48336902,2028.2,2027.4,0.0011]
[1773115269961,0.48336902,2028.2,2027.4,1.23420316]
[1773115270546,0.48336902,2028.2,2027.4,0.0011]
[1773115271367,0.48336902,2028.2,2027.4,1.23420131]
[1773115271539,1.288,2028.1,2027.5,0.45529629]
[1773115271936,1.288,2028.1,2027.6,1.68828109]
[1773115272466,1.288,2028.2,2027.7,0.45529629]
[1773115273575,0.001,2028.0,2027.7,0.45529629]
[1773115273978,2.52050166,2028.4,2027.8,0.45529629]
[1773115274142,2.5204996,2028.4,2027.8,0.45529629]
[1773115274476,1.288,2028.4,2027.8,0.45529629]
[1773115274872,0.48336902,2028.3,2027.7,1.232924]
[1773115275255,0.48336902,2028.3,2027.7,0.45529629]
[1773115276045,0.48336902,2028.3,2027.8,1.2328632]
[1773115276246,1.2325603,2028.3,2027.8,1.2328632]
[1773115276958,0.48336902,2028.2,2027.6,0.0011]
[1773115277275,0.48336902,2028.2,2027.6,1.23407652]
[1773115277657,0.48336902,2028.2,2027.6,0.0011]
[1773115277858,0.48336902,2028.2,2027.6,1.23407957]
[1773115278074,1.71604943,2028.2,2027.6,0.0011]
[1773115278467,0.48336902,2028.2,2027.6,0.45639629]
[1773115278772,1.287,2028.3,2027.6,0.45639629]
[1773115280459,2.51957701,2028.3,2027.7,1.232924]
[1773115280661,2.51957701,2028.3,2027.7,1.68822029]
[1773115281778,1.71591588,2028.4,2027.7,1.68822029]
[1773115281989,3.00278236,2028.6,2027.8,0.45529629]
[1773115282697,3.00278236,2028.6,2028.0,0.45529629]
[1773115282698,3.00274903,2028.6,2028.0,0.45529629]
[1773115283357,0.48336902,2028.5,2027.8,1.23281446]
[1773115283958,0.48336902,2028.5,2027.9,0.47772543]
[1773115284163,1.77036902,2028.5,2027.9,0.47772543]
[1773115284885,1.70101079,2028.4,2027.6,5.41075667]
[1773115285088,0.46851227,2028.3,2027.6,5.41075667]
[1773115285413,0.001,2028.1,2027.8,0.0011]
[1773115286454,0.001,2028.1,2027.8,0.47882543]
[1773115286690,1.2333408,2028.7,2027.8,0.47882543]
[1773115286869,1.288,2028.6,2027.8,0.47882543]
[1773115287078,1.288,2028.6,2028.0,0.47772543]
[1773115287378,1.70095003,2028.5,2027.9,1.71052783]
[1773115287558,0.46851227,2028.5,2027.9,1.71052783]
[1773115287753,1.288,2028.6,2028.0,0.47772543]
[1773115288154,2.52038102,2028.6,2028.0,0.47772543]
[1773115288368,1.70187064,2028.7,2028.0,0.47772543]
[1773115288584,1.288,2028.6,2028.0,0.47772543]
[1773115288786,0.001,2028.7,2028.0,0.47772543]
[1773115289164,0.001,2028.7,2028.1,1.71040626]
[1773115290191,0.46951227,2028.7,2028.1,0.47772543]
[1773115293375,0.46951227,2028.7,2028.2,1.23262005]
[1773115293574,0.001,2028.7,2028.2,1.68314416]
[1773115295312,0.001,2028.7,2028.3,0.45052411]
[1773115295494,0.001,2028.7,2028.4,1.68302263]
[1773115296803,0.001,2028.7,2028.5,0.45052411]
[1773115297202,0.001,2028.7,2028.3,0.45162411]
[1773115297391,0.001,2028.5,2028.4,1.23249852]
[1773115297596,0.001,2028.5,2028.4,1.68302263]
[1773115299300,0.001,2028.7,2028.4,1.68302263]
[1773115299301,0.001,2028.7,2028.5,0.45052411]
[1773115299486,0.001,2028.7,2028.6,1.232377]
[1773115300319,0.001,2028.7,2028.5,1.68291287]
[1773115300814,0.001,2028.7,2028.5,1.23238876]
[1773115301218,0.001,2028.7,2028.3,1.6841349]
[1773115301602,0.001,2028.7,2028.3,1.23365181]
[1773115301603,0.45218726,2028.7,2028.3,1.23365181]
[1773115302410,0.45218726,2028.7,2028.3,0.0011]
[1773115302784,0.45218726,2028.7,2028.3,1.23364304]
[1773115303186,0.45218726,2028.7,2028.3,1.23363328]
[1773115303381,0.45218726,2028.7,2028.0,0.0011]
[1773115303586,0.45118726,2028.4,2028.0,0.0011]
[1773115303887,1.285,2028.6,2028.1,0.45052411]
[1773115304301,2.51738188,2028.6,2028.1,0.45052411]
[1773115304503,1.285,2028.6,2028.1,0.45052411]
[1773115305423,2.96858258,2028.6,2028.1,0.45052411]
[1773115305626,1.73618726,2028.6,2028.1,1.6831623]
[1773115305926,2.96856567,2028.6,2028.1,1.6831623]
[1773115306090,0.45118726,2028.5,2028.0,1.23382295]
[1773115307094,1.285,2028.6,2028.0,1.23382295]
[1773115307095,1.285,2028.6,2028.0,1.68434706]
[1773115309222,1.73618726,2028.6,2028.0,1.68434706]
[1773115309523,1.73618726,2028.6,2028.2,0.0011]
[1773115309731,0.001,2028.5,2028.2,0.0011]
[1773115311125,0.45118726,2028.4,2028.2,0.0011]
[1773115312627,0.001,2028.5,2028.2,0.0011]
[1773115313198,1.23331861,2028.7,2028.2,0.45162411]
[1773115313199,1.73618726,2028.7,2028.2,0.45162411]
[1773115314439,2.96850834,2028.7,2028.2,1.68419409]
[1773115314597,1.73618726,2028.7,2028.2,1.68419409]
[1773115314935,1.285,2028.7,2028.2,1.68419409]
[1773115315118,1.285,2028.7,2028.3,0.45052411]
[1773115315700,1.73618726,2028.7,2028.3,0.45052411]
[1773115315929,0.45118726,2028.6,2028.2,0.0011]
[1773115316106,2.51737312,2028.7,2028.2,1.68423745]
[1773115316305,1.68356426,2028.6,2028.2,0.0011]
[1773115316510,1.285,2028.7,2028.2,0.49856827]
[1773115316710,2.51731939,2028.7,2028.2,0.49856827]
[1773115316942,2.98925856,2028.7,2028.2,0.49856827]
[1773115317500,0.47193917,2028.6,2028.2,0.0011]
[1773115318632,0.001,2028.7,2028.3,0.49746827]
[1773115318929,0.001,2028.7,2028.2,0.49856827]
[1773115319231,1.23332502,2028.7,2028.2,0.49856827]
[1773115319434,1.70526419,2028.7,2028.2,0.49856827]
[1773115319635,1.70526419,2028.7,2028.2,0.0011]
[1773115319636,0.47193917,2028.6,2028.2,0.0011]
[1773115320306,0.001,2028.7,2028.3,0.49746827]
[1773115320614,0.001,2029.2,2028.7,0.49746827]
[1773115320813,0.001,2029.2,2028.9,0.49746827]
[1773115321020,0.001,2029.2,2028.6,0.49746827]
[1773115321540,0.001,2029.2,2028.6,1.85937042]
[1773115321710,0.001,2029.2,2028.7,0.49746827]
[1773115322619,0.001,2029.2,2028.8,1.72972379]
[1773115323849,0.45306819,2029.1,2028.2,1.7245722]
[1773115324303,0.45306819,2029.1,2028.3,0.49089302]
[1773115324508,0.45306819,2029.1,2028.2,0.0011]
[1773115324708,0.45306819,2028.9,2028.2,0.0011]
[1773115326035,1.284,2028.8,2028.2,0.49199302]
[1773115326438,0.45306819,2028.7,2028.2,0.49199302]
[1773115326617,1.68542836,2028.7,2028.2,0.0011]
[1773115326818,0.45306819,2028.7,2028.2,0.0011]
[1773115327030,1.284,2028.8,2028.2,0.49199302]
[1773115327419,2.96928955,2028.9,2028.2,0.49199302]
[1773115327838,1.68528955,2028.9,2028.2,0.49199302]
[1773115328032,0.001,2029.2,2028.2,0.49199302]
[1773115328235,1.23302268,2029.2,2028.2,0.49199302]
[1773115328404,0.001,2029.2,2028.2,0.49199302]
[1773115328848,0.001,2029.2,2028.4,0.49089302]
[1773115330247,0.001,2029.2,2028.6,3.40415949]
[1773115330414,0.001,2029.2,2028.7,0.49089302]
[1773115330916,0.001,2029.2,2028.9,0.49089302]
[1773115331508,1.68478274,2029.7,2028.9,0.49089302]
[1773115332047,0.45306819,2029.6,2028.9,0.49089302]
[1773115332251,0.45306819,2029.6,2028.7,1.23227862]
[1773115332543,0.45306819,2029.6,2028.6,1.72322325]
[1773115333112,1.2318305,2029.5,2028.9,0.0011]
[1773115333423,0.001,2029.0,2028.9,0.0011]
[1773115338563,1.283,2029.4,2028.9,0.49199302]
[1773115339214,1.73606819,2029.4,2028.9,0.49199302]
[1773115339421,0.45306819,2029.3,2028.9,0.0011]
[1773115340852,1.283,2029.4,2028.9,1.7241878]
[1773115341640,1.73606819,2029.4,2028.9,1.7241878]
[1773115342057,1.283,2029.4,2029.0,0.49089302]
[1773115342367,0.45306819,2029.6,2029.0,0.49089302]
[1773115343452,0.45306819,2029.6,2029.1,1.23207333]
[1773115344159,0.45306819,2029.6,2029.1,1.72296635]
[1773115344654,1.684844,2029.6,2029.1,1.72296635]
[1773115344967,1.684844,2029.6,2029.0,1.72298703]
[1773115344968,0.45306819,2029.5,2029.0,1.72298703]
[1773115345125,1.23170911,2029.7,2029.1,0.49089302]
[1773115345319,1.68489664,2029.6,2029.1,1.72295357]
[1773115345559,0.45306819,2029.5,2028.9,0.49199302]
[1773115345766,0.45306819,2029.5,2029.1,0.0011]
[1773115346131,0.001,2029.2,2029.1,0.0011]
[1773115348662,1.73406819,2029.6,2029.1,0.49199302]
[1773115348865,2.96584467,2029.6,2029.1,0.49199302]
[1773115349041,0.45306819,2029.5,2029.1,0.0011]
[1773115350002,0.45306819,2029.5,2029.1,0.49199302]
[1773115350644,2.51277648,2029.6,2029.1,0.49199302]
[1773115350843,1.73406819,2029.6,2029.1,0.49199302]
[1773115351143,2.96585517,2029.6,2029.1,0.49199302]
[1773115351839,1.73406819,2029.6,2029.1,0.49199302]
[1773115352873,1.73406819,2029.6,2029.2,1.72290563]
[1773115353183,0.001,2029.8,2029.3,0.49089302]
[1773115353698,0.47522702,2029.8,2029.1,0.49611566]
[1773115353845,0.47422702,2029.7,2029.1,1.23315929]
[1773115354043,1.23265158,2029.8,2029.2,0.49501566]
[1773115354246,0.001,2029.8,2029.2,0.49501566]
[1773115355345,0.001,2029.8,2029.3,1.2319519]
[1773115355545,0.001,2029.8,2029.4,0.49501566]
[1773115357408,0.001,2029.8,2029.5,1.72684616]
[1773115357614,0.001,2029.8,2029.6,0.49501566]
[1773115357918,0.001,2029.8,2029.4,0.49501566]
[1773115358075,0.47522702,2029.8,2029.2,0.49501566]
[1773115358279,0.47522702,2029.8,2029.4,0.0011]
[1773115358478,0.001,2029.6,2029.4,0.0011]
[1773115358679,0.47522702,2029.6,2029.4,0.0011]
[1773115359095,0.47522702,2029.6,2029.2,0.0011]
[1773115359702,0.001,2029.6,2029.2,0.49611566]
[1773115360906,0.47522702,2029.6,2029.2,0.0011]
[1773115361107,0.001,2029.6,2029.2,0.49611566]
[1773115361671,0.47422702,2029.5,2029.2,0.0011]
[1773115362501,0.47422702,2029.5,2029.2,1.23310869]
[1773115363414,0.47422702,2029.5,2029.2,0.0011]
[1773115363614,0.001,2029.6,2029.2,0.0011]
[1773115363803,0.47522702,2029.6,2029.2,0.0011]
[1773115364614,1.70700644,2029.6,2029.2,0.0011]
[1773115365311,0.47422702,2029.5,2029.2,0.0011]
[1773115366220,0.47422702,2029.4,2029.2,0.0011]
[1773115366720,0.47422702,2029.4,2028.9,0.49611566]
[1773115367026,0.47422702,2029.4,2028.9,1.72830769]
[1773115367391,0.47422702,2029.4,2028.9,0.0011]
[1773115368048,0.47422702,2029.4,2028.9,1.72830804]
[1773115368505,0.47422702,2029.4,2029.0,0.49501566]
[1773115369185,1.279,2029.5,2029.0,0.49501566]
[1773115370316,1.279,2029.5,2029.1,1.23317333]
[1773115370724,1.279,2029.5,2029.1,1.72818899]
[1773115370725,0.001,2029.4,2029.1,1.72818899]
[1773115371124,0.001,2029.4,2029.2,0.47473481]
[1773115371525,0.001,2029.6,2029.2,0.47473481]
[1773115371823,0.48866569,2029.5,2029.1,0.0011]
[1773115372403,0.48866569,2029.3,2029.1,0.0011]
[1773115373499,0.48966569,2029.6,2029.1,0.47583481]
[1773115373699,0.001,2029.6,2029.1,0.47583481]
[1773115374130,0.001,2029.8,2029.2,0.47473481]
[1773115374438,0.001,2029.8,2029.4,0.47473481]
[1773115374934,0.001,2029.8,2029.3,1.2319519]
[1773115375135,0.48966569,2029.8,2029.3,1.2319519]
[1773115375304,0.48966569,2029.8,2029.2,1.70670389]
[1773115375503,0.001,2029.8,2029.3,0.47473481]
[1773115376505,0.001,2029.8,2029.5,0.47473481]
[1773115376838,0.48966569,2029.8,2029.3,0.47473481]
[1773115377046,0.48966569,2029.8,2029.3,1.70667038]
[1773115377745,0.48966569,2029.8,2029.2,4.9279222]
[1773115377746,0.48966569,2029.8,2029.2,1.23196634]
[1773115378444,0.48966569,2029.8,2029.2,1.70670115]
[1773115381345,0.001,2029.8,2029.3,0.47473481]
[1773115382551,0.001,2029.8,2029.5,0.47473481]
[1773115382952,0.001,2029.8,2029.2,1.70668809]
[1773115382953,0.48966569,2029.8,2029.2,1.70668809]
[1773115384051,0.48966569,2029.8,2029.3,0.46854335]
[1773115384621,0.48966569,2029.8,2029.4,1.23189119]
[1773115386861,0.001,2029.8,2029.5,0.46854335]
[1773115387059,0.001,2030.0,2029.5,0.46854335]
[1773115388626,0.001,2030.0,2029.7,0.46854335]
[1773115388852,1.277,2030.5,2029.8,0.46854335]
[1773115389460,0.45463716,2030.4,2029.6,1.70031315]
[1773115389860,0.45463716,2030.4,2029.6,1.2317698]
[1773115390060,0.45463716,2030.4,2029.7,0.46854335]
[1773115391232,0.45463716,2030.4,2029.9,0.46854335]
[1773115391555,1.68592224,2030.4,2029.8,1.23164843]
[1773115392061,1.277,2030.5,2029.9,0.46854335]
[1773115392230,0.45463716,2030.4,2029.8,1.23164843]
[1773115392626,0.45463716,2030.4,2029.7,0.46854335]
[1773115393734,1.68597669,2030.4,2029.8,1.23164843]
[1773115393949,0.45463716,2030.4,2029.8,1.23164843]
[1773115394155,0.45463716,2030.4,2029.8,1.70019178]
[1773115394579,0.001,2030.2,2029.8,1.70019178]
[1773115394946,0.001,2030.2,2029.9,0.46854335]
[1773115395147,0.45463716,2030.6,2029.9,0.46854335]
[1773115395359,1.276,2030.7,2029.9,0.46854335]
[1773115395781,1.68572457,2030.8,2030.1,0.46854335]
[1773115397281,0.45463716,2030.7,2030.1,0.46854335]
[1773115397666,0.45463716,2030.7,2029.9,0.46854335]
[1773115397847,0.45463716,2030.5,2029.7,1.7002344]
[1773115398046,0.45463716,2030.5,2029.8,0.46854335]
[1773115399605,0.45463716,2031.2,2029.9,0.46854335]
[1773115399891,0.45463716,2030.7,2029.8,1.23159159]
[1773115400095,0.45463716,2030.6,2029.8,0.46854335]
[1773115402095,1.23122383,2030.5,2030.0,0.46854335]
[1773115402273,0.45463716,2030.4,2029.6,0.46854335]
[1773115404086,1.68598228,2030.3,2029.7,1.70025246]
[1773115404287,0.45463716,2030.3,2029.7,1.70025246]
[1773115404470,0.45463716,2030.3,2029.7,0.46854335]
[1773115404860,0.45463716,2030.3,2029.5,1.70033394]
[1773115405076,0.45463716,2030.3,2029.5,1.70037308]
[1773115406282,0.45463716,2030.3,2029.6,0.46854335]
[1773115406458,0.45463716,2030.3,2030.0,0.001]
[1773115406658,0.45463716,2030.3,2029.6,0.46854335]
[1773115406867,0.45663716,2030.3,2029.6,0.46854335]
[1773115407086,0.45663716,2030.3,2029.8,0.001]
[1773115408457,0.45463716,2030.1,2029.5,0.001]
[1773115408665,0.45463716,2030.1,2029.5,1.23281813]
[1773115409070,1.274,2030.0,2029.5,1.23281813]
[1773115409281,0.002,2030.3,2029.7,0.46854335]
[1773115409665,0.45463716,2030.2,2029.7,0.46854335]
[1773115409976,0.45463716,2030.2,2029.5,4.92807922]
[1773115409977,0.45463716,2030.0,2029.5,0.001]
[1773115410164,0.45463716,2030.0,2029.5,1.23282251]
[1773115410366,1.6861755,2030.0,2029.5,1.23282543]
[1773115410792,0.45463716,2030.0,2029.5,1.23282543]
[1773115411181,0.45463716,2030.0,2029.5,0.46954335]
[1773115411379,1.68617473,2030.0,2029.5,0.46954335]
[1773115411579,0.45463716,2030.0,2029.5,0.46954335]
[1773115412966,1.268,2030.1,2029.7,0.46854335]
[1773115413293,1.268,2030.1,2029.6,1.70031315]
[1773115414195,1.268,2030.1,2029.7,0.48219064]
[1773115415096,1.268,2030.1,2029.8,1.23164843]
[1773115416096,0.002,2030.3,2029.9,0.48219064]
[1773115417168,0.002,2030.3,2030.0,1.23152709]
[1773115417369,0.002,2030.3,2030.0,1.71371773]
[1773115420595,0.002,2030.3,2030.1,0.48219064]
[1773115420898,0.45602536,2030.3,2030.0,0.001]
[1773115421102,0.002,2030.1,2030.0,0.001]
[1773115422877,0.002,2030.3,2030.1,0.48219064]
[1773115423091,0.002,2030.5,2030.1,0.48219064]
[1773115425900,0.002,2030.5,2030.3,0.48219064]
[1773115427980,0.002,2030.8,2030.5,0.48219064]
[1773115428440,0.45402536,2030.7,2030.0,1.23248279]
[1773115428726,0.45402536,2030.7,2030.0,1.71467343]
[1773115429026,0.45402536,2030.7,2030.1,0.48219064]
[1773115430587,0.002,2030.8,2030.3,0.46506442]
[1773115430903,0.002,2030.8,2030.1,4.9258397]
[1773115430904,0.4720962,2030.8,2030.1,1.69648701]
[1773115431600,0.4720962,2030.8,2030.1,1.23142259]
[1773115432393,0.4720962,2030.8,2030.1,1.69648701]
[1773115433577,1.70319002,2030.8,2030.1,1.23142259]
[1773115433783,1.70319002,2030.8,2030.2,0.46506442]
[1773115433985,1.70313916,2030.8,2030.2,0.46506442]
[1773115434205,0.002,2030.8,2030.2,0.46506442]
[1773115434584,0.002,2030.6,2030.2,0.46506442]
[1773115435717,0.002,2030.6,2030.3,1.69640954]
[1773115436611,0.002,2030.6,2030.2,1.23137351]
[1773115436781,0.4720962,2030.6,2030.2,1.23137351]
[1773115437182,0.002,2030.6,2030.0,1.69758866]
[1773115437406,0.4720962,2030.6,2030.0,1.69757551]
[1773115437604,1.23122383,2030.5,2030.0,1.69757551]
[1773115438212,1.7032648,2030.6,2030.0,1.69757551]
[1773115440324,0.4700962,2030.5,2030.0,1.69757551]
[1773115440631,0.4700962,2030.3,2030.0,0.001]
[1773115440824,1.269,2030.4,2030.0,1.69759124]
[1773115441012,1.269,2030.4,2030.0,0.46606442]
[1773115441210,0.4700962,2030.3,2030.0,0.001]
[1773115442328,1.70150182,2030.3,2030.0,0.001]
[1773115444024,0.002,2030.6,2030.1,0.45362473]
[1773115444930,0.002,2030.6,2030.2,1.6850305]
[1773115445229,0.002,2030.6,2030.3,0.45362473]
[1773115445432,0.002,2031.1,2030.4,0.45362473]
[1773115445613,0.004,2031.1,2030.4,0.45362473]
[1773115445814,0.004,2031.1,2030.6,3.39695587]
[1773115446036,1.267,2031.5,2030.6,3.39695587]
[1773115446037,1.267,2031.5,2030.7,0.45362473]
[1773115446203,0.002,2031.4,2030.7,0.45362473]
[1773115446405,0.002,2031.7,2030.7,0.45362473]
[1773115446599,0.002,2031.6,2031.1,0.45362473]
[1773115446928,0.45653756,2032.0,2031.1,0.45362473]
[1773115447133,1.23037551,2031.9,2031.2,1.68442425]
[1773115447428,0.45853756,2032.0,2031.3,0.45362473]
[1773115447429,0.002,2032.0,2031.3,0.45362473]
[1773115447727,1.23236056,2032.0,2031.3,0.45362473]
[1773115447926,1.68889812,2032.0,2031.1,1.2308251]
[1773115448126,1.68889812,2032.0,2031.1,1.68444983]
[1773115448309,1.68689812,2032.0,2031.1,1.68444983]
[1773115448507,0.002,2031.9,2031.1,1.68444983]
[1773115449201,0.002,2031.9,2031.2,0.45362473]
[1773115449401,0.002,2031.8,2031.2,0.45362473]
[1773115449833,0.002,2031.7,2031.2,0.45362473]
[1773115450136,0.002,2031.9,2031.2,0.45362473]
[1773115450331,0.45853756,2031.9,2031.2,0.45362473]
[1773115450699,0.002,2031.8,2031.2,0.45362473]
[1773115451328,0.002,2031.8,2031.4,0.45362473]
[1773115452535,1.23023195,2032.2,2031.4,0.45362473]
[1773115452741,0.45853756,2032.1,2031.4,0.45362473]
[1773115452902,0.45853756,2032.1,2031.2,1.68438344]
[1773115453101,0.002,2032.0,2031.3,0.45362473]
[1773115453330,0.002,2032.0,2031.1,0.45362473]
[1773115453518,0.45853756,2032.0,2031.2,0.45362473]
[1773115453726,0.45853756,2032.0,2031.1,1.68448485]
[1773115454098,0.45853756,2032.0,2031.0,1.23087458]
[1773115454940,0.45853756,2032.0,2031.0,1.68449931]
[1773115455145,0.45653756,2031.8,2030.4,1.23128447]
[1773115455442,1.23049662,2031.7,2030.7,0.45362473]
[1773115455651,0.002,2031.7,2030.7,0.45362473]
[1773115456845,0.002,2031.6,2030.7,0.45362473]
[1773115457060,0.45853756,2031.6,2030.7,0.45362473]
[1773115457268,0.002,2031.6,2030.7,0.45362473]
[1773115457723,0.002,2031.5,2030.9,0.45362473]
[1773115458049,0.002,2031.7,2030.9,0.45362473]
[1773115458851,0.002,2031.6,2031.1,0.45362473]
[1773115459315,0.001,2031.8,2031.1,0.45362473]
[1773115459738,0.001,2031.8,2031.3,0.45362473]
[1773115460333,0.45753756,2031.8,2031.0,1.68451577]
[1773115461247,0.45753756,2031.8,2031.0,1.23089104]
[1773115461455,0.45753756,2031.8,2030.6,4.92448584]
[1773115461750,0.45653756,2031.4,2030.6,1.68477339]
[1773115462249,1.23061777,2031.5,2030.7,0.45362473]
[1773115463018,1.68715533,2031.5,2030.7,0.45362473]
[1773115463461,0.45653756,2031.4,2030.5,1.23122383]
[1773115463647,0.45653756,2031.4,2030.4,1.68490315]
[1773115463959,1.68727649,2031.3,2030.4,1.68490315]
[1773115464257,1.68727649,2031.3,2030.5,0.45362473]
[1773115466856,0.45653756,2031.5,2030.7,0.45362473]
[1773115467355,0.45653756,2031.5,2030.5,1.2312217]
[1773115467728,0.45653756,2031.5,2030.5,1.68484643]
[1773115468053,0.45653756,2031.5,2030.6,0.45362473]
[1773115468559,1.23067834,2031.4,2030.7,1.23110257]
[1773115468730,1.23067834,2031.4,2030.7,1.6847273]
[1773115468929,1.2306109,2031.6,2030.8,0.45362473]
[1773115469553,5.12768569,2031.7,2030.8,0.45362473]
[1773115470037,3.86068569,2031.7,2030.8,0.45362473]
[1773115470367,1.267,2031.6,2030.8,0.45362473]